[Event "Titled Tuesday Blitz December 20 Early 2022"]
[White "Etoilegeniale"]
[Black "Hsu, Li Yang"]
[BlackFideId "5800080"]
[WhiteElo "2593"]
[BlackElo "2427"]
[Result "0-1"]
[Round "11"]
[TimeControl "180+2"]
[Date "2022.12.20"]
[WhiteClock "0:00:07"]
[BlackClock "0:00:11"]

1. c4 {[%clk 0:03:00]}  Nf6 {[%clk 0:02:56]} 2. Nc3 {[%clk 0:03:00]}  c5 {[%clk 0:02:53]} 3. g3 {[%clk 0:03:00]}  e6 {[%clk 0:02:50]} 4. Bg2 {[%clk 0:03:00]}  d5 {[%clk 0:02:50]} 5. cxd5 {[%clk 0:02:56]}  exd5 {[%clk 0:02:51]} 6. d4 {[%clk 0:02:56]}  cxd4 {[%clk 0:02:50]} 7. Qxd4 {[%clk 0:02:55]}  Nc6 {[%clk 0:02:50]} 8. Qd1 {[%clk 0:02:53]}  d4 {[%clk 0:02:46]} 9. Ne4 {[%clk 0:02:53]}  Bf5 {[%clk 0:02:39]} 10. Nxf6+ {[%clk 0:02:49]}  Qxf6 {[%clk 0:02:40]} 11. Nf3 {[%clk 0:02:48]}  Bc5 {[%clk 0:02:31]} 12. O-O {[%clk 0:02:47]}  O-O {[%clk 0:02:31]} 13. Bg5 {[%clk 0:02:42]}  Qe6 {[%clk 0:02:20]} 14. Rc1 {[%clk 0:02:34]}  Bb6 {[%clk 0:02:19]} 15. a3 {[%clk 0:02:27]}  Rfe8 {[%clk 0:02:17]} 16. Re1 {[%clk 0:02:27]}  h6 {[%clk 0:02:15]} 17. Bf4 {[%clk 0:02:24]}  Rad8 {[%clk 0:02:15]} 18. Qa4 {[%clk 0:02:05]}  Be4 {[%clk 0:02:08]} 19. h3 {[%clk 0:01:59]}  Qd5 {[%clk 0:01:49]} 20. Qc4 {[%clk 0:01:39]}  Qa5 {[%clk 0:01:24]} 21. Bd2 {[%clk 0:01:30]}  Qf5 {[%clk 0:01:16]} 22. Nh4 {[%clk 0:01:14]}  Qf6 {[%clk 0:01:14]} 23. Bxe4 {[%clk 0:01:11]}  Rxe4 {[%clk 0:01:15]} 24. Qd3 {[%clk 0:01:11]}  Rde8 {[%clk 0:01:12]} 25. Nf3 {[%clk 0:01:07]}  Qe6 {[%clk 0:01:04]} 26. Kg2 {[%clk 0:01:04]}  Rxe2 {[%clk 0:01:00]} 27. b4 {[%clk 0:00:53]}  Rxe1 {[%clk 0:00:52]} 28. Rxe1 {[%clk 0:00:51]}  Qd7 {[%clk 0:00:52]} 29. Rxe8+ {[%clk 0:00:51]}  Qxe8 {[%clk 0:00:53]} 30. b5 {[%clk 0:00:51]}  Ne7 {[%clk 0:00:42]} 31. Nxd4 {[%clk 0:00:49]}  Qd7 {[%clk 0:00:31]} 32. Be3 {[%clk 0:00:48]}  Nd5 {[%clk 0:00:30]} 33. Qf5 {[%clk 0:00:25]}  Nxe3+ {[%clk 0:00:27]} 34. fxe3 {[%clk 0:00:26]}  Qe7 {[%clk 0:00:25]} 35. Qc8+ {[%clk 0:00:21]}  Kh7 {[%clk 0:00:24]} 36. Qf5+ {[%clk 0:00:21]}  g6 {[%clk 0:00:24]} 37. Qf3 {[%clk 0:00:22]}  Kg7 {[%clk 0:00:21]} 38. a4 {[%clk 0:00:20]}  Qb4 {[%clk 0:00:18]} 39. Qg4 {[%clk 0:00:18]}  Qd2+ {[%clk 0:00:18]} 40. Kf3 {[%clk 0:00:17]}  Qd1+ {[%clk 0:00:17]} 41. Kg2 {[%clk 0:00:16]}  Qd2+ {[%clk 0:00:16]} 42. Kf3 {[%clk 0:00:16]}  Qd1+ {[%clk 0:00:17]} 43. Ke4 {[%clk 0:00:15]}  Qxa4 {[%clk 0:00:16]} 44. Kd3 {[%clk 0:00:12]}  Qa3+ {[%clk 0:00:16]} 45. Ke2 {[%clk 0:00:12]}  Qb2+ {[%clk 0:00:16]} 46. Kf3 {[%clk 0:00:12]}  Qc3 {[%clk 0:00:14]} 47. Nf5+ {[%clk 0:00:11]}  Kh7 {[%clk 0:00:13]} 48. Nd4 {[%clk 0:00:07]}  Bxd4 {[%clk 0:00:10]} 49. Qxd4 {[%clk 0:00:07]}  Qxd4 {[%clk 0:00:10]} 50. exd4 {[%clk 0:00:07]}  Kg7 {[%clk 0:00:11]} 0-1


[Site "https://www.chess.com"]

[Event "Titled Tuesday Blitz December 20 Early 2022"]
[White "Ezat, Mohamed"]
[Black "Jasko, Pavel"]
[WhiteFideId "10600906"]
[BlackFideId "980463"]
[WhiteElo "2402"]
[BlackElo "1693"]
[Result "0-1"]
[Round "11"]
[TimeControl "180+2"]
[Date "2022.12.20"]
[WhiteClock "0:00:05"]
[BlackClock "0:00:04"]

1. e4 {[%clk 0:02:55]}  c5 {[%clk 0:02:59]} 2. d4 {[%clk 0:02:54]}  cxd4 {[%clk 0:02:59]} 3. c3 {[%clk 0:02:54]}  Nf6 {[%clk 0:02:59]} 4. e5 {[%clk 0:02:54]}  Nd5 {[%clk 0:02:59]} 5. Nf3 {[%clk 0:02:53]}  e6 {[%clk 0:02:58]} 6. Bc4 {[%clk 0:02:50]}  d6 {[%clk 0:02:55]} 7. O-O {[%clk 0:02:48]}  Nc6 {[%clk 0:02:54]} 8. Re1 {[%clk 0:02:44]}  dxe5 {[%clk 0:02:54]} 9. Nxe5 {[%clk 0:02:43]}  Nxe5 {[%clk 0:02:54]} 10. Rxe5 {[%clk 0:02:42]}  Bd6 {[%clk 0:02:49]} 11. Rg5 {[%clk 0:02:36]}  O-O {[%clk 0:02:45]} 12. Qxd4 {[%clk 0:02:30]}  Qf6 {[%clk 0:02:18]} 13. Bxd5 {[%clk 0:02:23]}  Qxd4 {[%clk 0:02:18]} 14. cxd4 {[%clk 0:02:22]}  exd5 {[%clk 0:02:19]} 15. Rxd5 {[%clk 0:02:22]}  Bc7 {[%clk 0:02:14]} 16. Nc3 {[%clk 0:02:10]}  Be6 {[%clk 0:02:13]} 17. Rh5 {[%clk 0:02:02]}  g6 {[%clk 0:02:12]} 18. Rb5 {[%clk 0:02:00]}  Bb6 {[%clk 0:02:10]} 19. Be3 {[%clk 0:01:57]}  Bc4 {[%clk 0:02:06]} 20. Rb4 {[%clk 0:01:55]}  Bd3 {[%clk 0:02:03]} 21. d5 {[%clk 0:01:54]}  Ba5 {[%clk 0:01:56]} 22. Rxb7 {[%clk 0:01:53]}  Bxc3 {[%clk 0:01:56]} 23. bxc3 {[%clk 0:01:51]}  Rfd8 {[%clk 0:01:56]} 24. Bxa7 {[%clk 0:01:40]}  Rxd5 {[%clk 0:01:52]} 25. Bd4 {[%clk 0:01:40]}  Bc4 {[%clk 0:01:47]} 26. a4 {[%clk 0:01:36]}  Rdd8 {[%clk 0:01:39]} 27. a5 {[%clk 0:01:33]}  Rdc8 {[%clk 0:01:38]} 28. h4 {[%clk 0:01:29]}  h5 {[%clk 0:01:37]} 29. Kh2 {[%clk 0:01:28]}  Ra6 {[%clk 0:01:37]} 30. Rb6 {[%clk 0:01:25]}  Kf8 {[%clk 0:01:34]} 31. Rxa6 {[%clk 0:01:24]}  Bxa6 {[%clk 0:01:34]} 32. Rb1 {[%clk 0:01:24]}  Ke7 {[%clk 0:01:25]} 33. Rb6 {[%clk 0:01:23]}  Ra8 {[%clk 0:01:26]} 34. Kg3 {[%clk 0:01:22]}  Ke8 {[%clk 0:01:22]} 35. Kf4 {[%clk 0:01:21]}  Kd7 {[%clk 0:01:21]} 36. Kg5 {[%clk 0:01:20]}  Ke7 {[%clk 0:01:21]} 37. g3 {[%clk 0:01:17]}  Bc4 {[%clk 0:01:15]} 38. Rb7+ {[%clk 0:01:16]}  Ke6 {[%clk 0:01:16]} 39. Rb6+ {[%clk 0:01:11]}  Ke7 {[%clk 0:01:15]} 40. f4 {[%clk 0:01:05]}  Rxa5+ {[%clk 0:01:15]} 41. Be5 {[%clk 0:01:01]}  Be6 {[%clk 0:01:08]} 42. Rb7+ {[%clk 0:01:00]}  Bd7 {[%clk 0:01:04]} 43. Kh6 {[%clk 0:00:58]}  Ke6 {[%clk 0:01:01]} 44. Kg7 {[%clk 0:00:56]}  Rd5 {[%clk 0:00:47]} 45. Rb6+ {[%clk 0:00:53]}  Kf5 {[%clk 0:00:42]} 46. Rf6+ {[%clk 0:00:50]}  Kg4 {[%clk 0:00:42]} 47. Kxf7 {[%clk 0:00:46]}  Kxg3 {[%clk 0:00:34]} 48. Ke7 {[%clk 0:00:40]}  Bf5 {[%clk 0:00:32]} 49. c4 {[%clk 0:00:34]}  Rc5 {[%clk 0:00:23]} 50. Rd6 {[%clk 0:00:22]}  Rxc4 {[%clk 0:00:21]} 51. Rd1 {[%clk 0:00:21]}  Kxh4 {[%clk 0:00:19]} 52. Rg1 {[%clk 0:00:20]}  Kh3 {[%clk 0:00:11]} 53. Kf6 {[%clk 0:00:15]}  Rc6+ {[%clk 0:00:10]} 54. Kg5 {[%clk 0:00:15]}  Kh2 {[%clk 0:00:09]} 55. Ra1 {[%clk 0:00:12]}  Kh3 {[%clk 0:00:08]} 56. Ra2 {[%clk 0:00:10]}  h4 {[%clk 0:00:06]} 57. Ra3+ {[%clk 0:00:10]}  Kg2 {[%clk 0:00:06]} 58. Kxh4 {[%clk 0:00:10]}  Rc1 {[%clk 0:00:06]} 59. Rg3+ {[%clk 0:00:09]}  Kf2 {[%clk 0:00:06]} 60. Bd4+ {[%clk 0:00:08]}  Ke2 {[%clk 0:00:06]} 61. Re3+ {[%clk 0:00:07]}  Kd2 {[%clk 0:00:06]} 62. Kg3 {[%clk 0:00:08]}  Rg1+ {[%clk 0:00:06]} 63. Kf2 {[%clk 0:00:08]}  Rg4 {[%clk 0:00:06]} 64. Be5 {[%clk 0:00:07]}  Rh4 {[%clk 0:00:05]} 65. Ra3 {[%clk 0:00:06]}  Rh2+ {[%clk 0:00:05]} 66. Kf1 {[%clk 0:00:07]}  Rh1+ {[%clk 0:00:05]} 67. Kg2 {[%clk 0:00:07]}  Rh7 {[%clk 0:00:05]} 68. Kf2 {[%clk 0:00:07]}  Be4 {[%clk 0:00:04]} 69. Ra2+ {[%clk 0:00:04]}  Kd3 {[%clk 0:00:04]} 70. Ra3+ {[%clk 0:00:04]}  Kc4 {[%clk 0:00:04]} 71. Rc3+ {[%clk 0:00:05]}  Kd5 {[%clk 0:00:04]} 72. Rc1 {[%clk 0:00:06]}  Ke6 {[%clk 0:00:05]} 73. Ke3 {[%clk 0:00:06]}  Kf5 {[%clk 0:00:05]} 74. Kd4 {[%clk 0:00:07]}  Rh3 {[%clk 0:00:05]} 75. Rg1 {[%clk 0:00:05]}  Rd3+ {[%clk 0:00:06]} 76. Kc4 {[%clk 0:00:05]}  Ke6 {[%clk 0:00:05]} 77. Rg5 {[%clk 0:00:05]}  Rd8 {[%clk 0:00:05]} 78. Rg3 {[%clk 0:00:04]}  Bf5 {[%clk 0:00:05]} 79. Kc5 {[%clk 0:00:04]}  Rc8+ {[%clk 0:00:06]} 80. Kd4 {[%clk 0:00:05]}  Rd8+ {[%clk 0:00:06]} 81. Ke3 {[%clk 0:00:05]}  Rd1 {[%clk 0:00:05]} 82. Kf2 {[%clk 0:00:06]}  Kd5 {[%clk 0:00:05]} 83. Ke2 {[%clk 0:00:06]}  Rb1 {[%clk 0:00:05]} 84. Rc3 {[%clk 0:00:06]}  Ke4 {[%clk 0:00:05]} 85. Rc4+ {[%clk 0:00:06]}  Kd5 {[%clk 0:00:05]} 86. Rc3 {[%clk 0:00:06]}  Be4 {[%clk 0:00:04]} 87. Ra3 {[%clk 0:00:05]}  Ke6 {[%clk 0:00:04]} 88. Ke3 {[%clk 0:00:06]}  Kf5 {[%clk 0:00:04]} 89. Ra6 {[%clk 0:00:05]}  Rh1 {[%clk 0:00:03]} 90. Kf2 {[%clk 0:00:05]}  Rh2+ {[%clk 0:00:02]} 91. Ke3 {[%clk 0:00:05]}  Rh3+ {[%clk 0:00:02]} 92. Ke2 {[%clk 0:00:05]}  Bd3+ {[%clk 0:00:02]} 93. Kf2 {[%clk 0:00:05]}  Bxa6 {[%clk 0:00:03]} 94. Kg2 {[%clk 0:00:04]}  Rb3 {[%clk 0:00:04]} 95. Kf2 {[%clk 0:00:05]}  Kg4 {[%clk 0:00:04]} 96. f5 {[%clk 0:00:04]}  gxf5 {[%clk 0:00:04]} 97. Bd4 {[%clk 0:00:04]}  f4 {[%clk 0:00:04]} 98. Be3 {[%clk 0:00:05]}  fxe3+ {[%clk 0:00:03]} 99. Kg1 {[%clk 0:00:06]}  Kg3 {[%clk 0:00:03]} 100. Kh1 {[%clk 0:00:05]}  Rb1# {[%clk 0:00:04]} 0-1


[Site "https://www.chess.com"]

[Event "Titled Tuesday Blitz December 20 Early 2022"]
[White "Felix-Rose"]
[Black "APOKALIPSA13"]
[WhiteElo "2299"]
[BlackElo "2220"]
[Result "0-1"]
[Round "11"]
[TimeControl "180+2"]
[Date "2022.12.20"]
[WhiteClock "0:00:02"]
[BlackClock "0:00:10"]

1. e4 {[%clk 0:03:00]}  e5 {[%clk 0:03:00]} 2. Nf3 {[%clk 0:03:00]}  f5 {[%clk 0:02:58]} 3. Nxe5 {[%clk 0:02:55]}  Qf6 {[%clk 0:02:57]} 4. d4 {[%clk 0:02:55]}  d6 {[%clk 0:02:57]} 5. Nc4 {[%clk 0:02:54]}  fxe4 {[%clk 0:02:57]} 6. Nc3 {[%clk 0:02:54]}  Qg6 {[%clk 0:02:56]} 7. f3 {[%clk 0:02:37]}  exf3 {[%clk 0:02:38]} 8. Qxf3 {[%clk 0:02:36]}  Nc6 {[%clk 0:02:34]} 9. Nb5 {[%clk 0:02:15]}  Bg4 {[%clk 0:02:06]} 10. Qe3+ {[%clk 0:01:41]}  Kd7 {[%clk 0:02:02]} 11. Bd3 {[%clk 0:01:24]}  Qh5 {[%clk 0:01:51]} 12. O-O {[%clk 0:01:16]}  a6 {[%clk 0:01:36]} 13. Nc3 {[%clk 0:00:49]}  Re8 {[%clk 0:01:34]} 14. Qf2 {[%clk 0:00:44]}  Nf6 {[%clk 0:01:31]} 15. h3 {[%clk 0:00:41]}  Be6 {[%clk 0:01:22]} 16. Bd2 {[%clk 0:00:24]}  b5 {[%clk 0:01:09]} 17. Ne3 {[%clk 0:00:16]}  Nxd4 {[%clk 0:01:08]} 18. Rae1 {[%clk 0:00:14]}  c5 {[%clk 0:00:58]} 19. Nf5 {[%clk 0:00:08]}  Bxf5 {[%clk 0:00:50]} 20. Rxe8 {[%clk 0:00:08]}  Nxe8 {[%clk 0:00:45]} 21. g4 {[%clk 0:00:08]}  Bxg4 {[%clk 0:00:42]} 22. hxg4 {[%clk 0:00:04]}  Qxg4+ {[%clk 0:00:43]} 23. Qg2 {[%clk 0:00:04]}  Qxg2+ {[%clk 0:00:38]} 24. Kxg2 {[%clk 0:00:05]}  Nc7 {[%clk 0:00:28]} 25. Rf7+ {[%clk 0:00:04]}  Kc8 {[%clk 0:00:18]} 26. Be3 {[%clk 0:00:02]}  b4 {[%clk 0:00:10]} 0-1


[Site "https://www.chess.com"]

[Event "Titled Tuesday Blitz December 20 Early 2022"]
[White "Flawless_Fighter"]
[Black "WhiteKnight2612"]
[WhiteElo "2622"]
[BlackElo "2753"]
[Result "0-1"]
[Round "11"]
[TimeControl "180+2"]
[Date "2022.12.20"]
[WhiteClock "0:00:01"]
[BlackClock "0:00:50"]

1. d4 {[%clk 0:03:00]}  Nf6 {[%clk 0:02:56]} 2. Nf3 {[%clk 0:02:54]}  g6 {[%clk 0:02:56]} 3. c4 {[%clk 0:02:54]}  Bg7 {[%clk 0:02:57]} 4. Nc3 {[%clk 0:02:54]}  O-O {[%clk 0:02:58]} 5. e4 {[%clk 0:02:54]}  d6 {[%clk 0:02:59]} 6. Be2 {[%clk 0:02:52]}  e5 {[%clk 0:02:59]} 7. d5 {[%clk 0:02:48]}  a5 {[%clk 0:02:58]} 8. O-O {[%clk 0:02:40]}  Na6 {[%clk 0:02:57]} 9. Be3 {[%clk 0:02:38]}  b6 {[%clk 0:02:57]} 10. Nd2 {[%clk 0:02:38]}  Nc5 {[%clk 0:02:56]} 11. Qc2 {[%clk 0:02:36]}  Bd7 {[%clk 0:02:54]} 12. b3 {[%clk 0:02:35]}  Ng4 {[%clk 0:02:50]} 13. Bxg4 {[%clk 0:02:35]}  Bxg4 {[%clk 0:02:50]} 14. a3 {[%clk 0:02:34]}  Bd7 {[%clk 0:02:45]} 15. b4 {[%clk 0:02:34]}  Nb7 {[%clk 0:02:45]} 16. Nb3 {[%clk 0:02:22]}  a4 {[%clk 0:02:37]} 17. Nd2 {[%clk 0:02:22]}  f5 {[%clk 0:02:38]} 18. f3 {[%clk 0:02:21]}  f4 {[%clk 0:02:38]} 19. Bf2 {[%clk 0:02:22]}  g5 {[%clk 0:02:39]} 20. g4 {[%clk 0:01:46]}  fxg3 {[%clk 0:02:25]} 21. hxg3 {[%clk 0:01:47]}  g4 {[%clk 0:02:22]} 22. Be3 {[%clk 0:01:40]}  gxf3 {[%clk 0:02:03]} 23. Rxf3 {[%clk 0:01:39]}  Rxf3 {[%clk 0:02:02]} 24. Nxf3 {[%clk 0:01:40]}  Qf6 {[%clk 0:02:01]} 25. Rf1 {[%clk 0:01:35]}  Rf8 {[%clk 0:02:02]} 26. Qg2 {[%clk 0:01:28]}  Qg6 {[%clk 0:02:02]} 27. Nh4 {[%clk 0:01:18]}  Qh5 {[%clk 0:02:02]} 28. Rxf8+ {[%clk 0:01:17]}  Bxf8 {[%clk 0:02:03]} 29. Qf3 {[%clk 0:01:16]}  Qxf3 {[%clk 0:01:51]} 30. Nxf3 {[%clk 0:01:16]}  Be7 {[%clk 0:01:39]} 31. Kf2 {[%clk 0:01:14]}  Nd8 {[%clk 0:01:40]} 32. Ne1 {[%clk 0:01:12]}  Nf7 {[%clk 0:01:37]} 33. Nd3 {[%clk 0:01:11]}  Ng5 {[%clk 0:01:36]} 34. c5 {[%clk 0:01:03]}  bxc5 {[%clk 0:01:33]} 35. bxc5 {[%clk 0:01:03]}  h5 {[%clk 0:01:33]} 36. c6 {[%clk 0:01:00]}  Bc8 {[%clk 0:01:34]} 37. Nb4 {[%clk 0:00:28]}  Kf7 {[%clk 0:01:25]} 38. Ke2 {[%clk 0:00:25]}  Kg6 {[%clk 0:01:22]} 39. Kd3 {[%clk 0:00:24]}  Nf3 {[%clk 0:01:07]} 40. Nxa4 {[%clk 0:00:24]}  Nh2 {[%clk 0:00:55]} 41. Nc3 {[%clk 0:00:17]}  Nf1 {[%clk 0:00:55]} 42. Bf2 {[%clk 0:00:17]}  Kg5 {[%clk 0:00:55]} 43. Ke2 {[%clk 0:00:16]}  Nh2 {[%clk 0:00:53]} 44. Nb5 {[%clk 0:00:16]}  Bd8 {[%clk 0:00:53]} 45. a4 {[%clk 0:00:14]}  Bg4+ {[%clk 0:00:49]} 46. Kd3 {[%clk 0:00:12]}  Bh3 {[%clk 0:00:49]} 47. a5 {[%clk 0:00:12]}  Bf1+ {[%clk 0:00:49]} 48. Kd2 {[%clk 0:00:07]}  Bxb5 {[%clk 0:00:49]} 49. a6 {[%clk 0:00:07]}  Bxa6 {[%clk 0:00:49]} 50. Nxa6 {[%clk 0:00:08]}  Kg4 {[%clk 0:00:50]} 51. Ke3 {[%clk 0:00:06]}  Nf1+ {[%clk 0:00:49]} 52. Ke2 {[%clk 0:00:07]}  Nxg3+ {[%clk 0:00:50]} 53. Bxg3 {[%clk 0:00:06]}  Kxg3 {[%clk 0:00:51]} 54. Nb8 {[%clk 0:00:02]}  Kg2 {[%clk 0:00:50]} 55. Nd7 {[%clk 0:00:02]}  h4 {[%clk 0:00:50]} 56. Nf8 {[%clk 0:00:01]}  h3 {[%clk 0:00:51]} 57. Ng6 {[%clk 0:00:01]}  h2 {[%clk 0:00:50]} 0-1


[Site "https://www.chess.com"]

[Event "Titled Tuesday Blitz December 20 Early 2022"]
[White "Forgacs, Gyula"]
[Black "HackingKid98"]
[WhiteFideId "701203"]
[WhiteElo "2305"]
[BlackElo "2488"]
[Result "1/2-1/2"]
[Round "11"]
[TimeControl "180+2"]
[Date "2022.12.20"]
[WhiteClock "0:00:04"]
[BlackClock "0:00:19"]

1. e4 {[%clk 0:03:00]}  Nf6 {[%clk 0:02:57]} 2. e5 {[%clk 0:03:00]}  Ng8 {[%clk 0:02:57]} 3. d4 {[%clk 0:03:01]}  d6 {[%clk 0:02:57]} 4. Nf3 {[%clk 0:03:00]}  Bg4 {[%clk 0:02:56]} 5. Be2 {[%clk 0:02:59]}  dxe5 {[%clk 0:02:56]} 6. dxe5 {[%clk 0:02:57]}  Qxd1+ {[%clk 0:02:57]} 7. Bxd1 {[%clk 0:02:58]}  e6 {[%clk 0:02:57]} 8. Nc3 {[%clk 0:02:57]}  c6 {[%clk 0:02:56]} 9. h3 {[%clk 0:02:55]}  Bxf3 {[%clk 0:02:54]} 10. Bxf3 {[%clk 0:02:55]}  Nd7 {[%clk 0:02:55]} 11. Bf4 {[%clk 0:02:54]}  Ne7 {[%clk 0:02:55]} 12. Be4 {[%clk 0:02:33]}  Ng6 {[%clk 0:02:51]} 13. Bxg6 {[%clk 0:02:34]}  hxg6 {[%clk 0:02:52]} 14. O-O-O {[%clk 0:02:33]}  O-O-O {[%clk 0:02:44]} 15. Ne4 {[%clk 0:02:32]}  Be7 {[%clk 0:02:42]} 16. Nd6+ {[%clk 0:02:31]}  Bxd6 {[%clk 0:02:43]} 17. Rxd6 {[%clk 0:02:31]}  Nb6 {[%clk 0:02:42]} 18. Rhd1 {[%clk 0:02:28]}  Nc4 {[%clk 0:02:34]} 19. R6d4 {[%clk 0:02:19]}  Nb6 {[%clk 0:02:29]} 20. Bg5 {[%clk 0:02:16]}  Rxd4 {[%clk 0:02:26]} 21. Rxd4 {[%clk 0:02:17]}  Nd7 {[%clk 0:02:26]} 22. Bf4 {[%clk 0:02:10]}  Rh5 {[%clk 0:02:25]} 23. Re4 {[%clk 0:02:01]}  Rh4 {[%clk 0:02:15]} 24. f3 {[%clk 0:01:42]}  g5 {[%clk 0:01:59]} 25. Bxg5 {[%clk 0:01:37]}  Rxe4 {[%clk 0:02:00]} 26. fxe4 {[%clk 0:01:38]}  Nxe5 {[%clk 0:02:01]} 27. b3 {[%clk 0:01:35]}  Nd7 {[%clk 0:01:56]} 28. Kd2 {[%clk 0:01:33]}  Kc7 {[%clk 0:01:49]} 29. Ke3 {[%clk 0:01:29]}  Kb6 {[%clk 0:01:50]} 30. c4 {[%clk 0:01:25]}  Kc5 {[%clk 0:01:49]} 31. Be7+ {[%clk 0:01:23]}  Kb6 {[%clk 0:01:50]} 32. h4 {[%clk 0:01:22]}  c5 {[%clk 0:01:46]} 33. g4 {[%clk 0:01:19]}  f6 {[%clk 0:01:45]} 34. Kf4 {[%clk 0:01:09]}  Kc6 {[%clk 0:01:45]} 35. g5 {[%clk 0:01:08]}  fxg5+ {[%clk 0:01:04]} 36. Kxg5 {[%clk 0:01:09]}  Ne5 {[%clk 0:01:03]} 37. Bf8 {[%clk 0:01:07]}  Nf3+ {[%clk 0:01:01]} 38. Kh5 {[%clk 0:01:07]}  g6+ {[%clk 0:01:01]} 39. Kxg6 {[%clk 0:01:00]}  Nxh4+ {[%clk 0:01:01]} 40. Kf6 {[%clk 0:00:59]}  Kd7 {[%clk 0:00:53]} 41. Bxc5 {[%clk 0:00:57]}  a6 {[%clk 0:00:53]} 42. b4 {[%clk 0:00:41]}  Nf3 {[%clk 0:00:51]} 43. Be3 {[%clk 0:00:35]}  Ne1 {[%clk 0:00:51]} 44. a4 {[%clk 0:00:27]}  Nc2 {[%clk 0:00:51]} 45. Bd2 {[%clk 0:00:26]}  Na3 {[%clk 0:00:48]} 46. c5 {[%clk 0:00:21]}  Nc2 {[%clk 0:00:35]} 47. Ke5 {[%clk 0:00:16]}  Ke7 {[%clk 0:00:24]} 48. b5 {[%clk 0:00:11]}  axb5 {[%clk 0:00:24]} 49. axb5 {[%clk 0:00:12]}  Na3 {[%clk 0:00:24]} 50. Bg5+ {[%clk 0:00:10]}  Kd7 {[%clk 0:00:24]} 51. c6+ {[%clk 0:00:07]}  bxc6 {[%clk 0:00:23]} 52. bxc6+ {[%clk 0:00:08]}  Kxc6 {[%clk 0:00:21]} 53. Kxe6 {[%clk 0:00:09]}  Nc4 {[%clk 0:00:19]} 54. Bf4 {[%clk 0:00:09]}  Kc5 {[%clk 0:00:18]} 55. Be5 {[%clk 0:00:08]}  Nd2 {[%clk 0:00:17]} 56. Bd6+ {[%clk 0:00:06]}  Kc6 {[%clk 0:00:17]} 57. e5 {[%clk 0:00:05]}  Nc4 {[%clk 0:00:18]} 58. Be7 {[%clk 0:00:04]}  Nxe5 {[%clk 0:00:19]} 1/2-1/2


[Site "https://www.chess.com"]

[Event "Titled Tuesday Blitz December 20 Early 2022"]
[White "Giorno, Sven"]
[Black "Harry_Rakkel"]
[WhiteFideId "20645082"]
[WhiteElo "2517"]
[BlackElo "2611"]
[Result "0-1"]
[Round "11"]
[TimeControl "180+2"]
[Date "2022.12.20"]
[WhiteClock "0:00:08"]
[BlackClock "0:00:06"]

1. d4 {[%clk 0:03:00]}  Nf6 {[%clk 0:02:59]} 2. c4 {[%clk 0:03:00]}  e6 {[%clk 0:02:59]} 3. Nf3 {[%clk 0:03:00]}  b6 {[%clk 0:02:59]} 4. g3 {[%clk 0:03:00]}  Ba6 {[%clk 0:02:59]} 5. b3 {[%clk 0:02:58]}  d5 {[%clk 0:02:57]} 6. cxd5 {[%clk 0:02:45]}  exd5 {[%clk 0:02:56]} 7. Bg2 {[%clk 0:02:41]}  Bd6 {[%clk 0:02:53]} 8. O-O {[%clk 0:02:40]}  O-O {[%clk 0:02:52]} 9. Bf4 {[%clk 0:02:37]}  Re8 {[%clk 0:02:49]} 10. Re1 {[%clk 0:02:31]}  Bb4 {[%clk 0:02:35]} 11. Bd2 {[%clk 0:02:28]}  Bf8 {[%clk 0:02:33]} 12. Nc3 {[%clk 0:02:23]}  c5 {[%clk 0:02:30]} 13. Bg5 {[%clk 0:02:18]}  cxd4 {[%clk 0:01:59]} 14. Qxd4 {[%clk 0:02:17]}  Nc6 {[%clk 0:01:57]} 15. Qh4 {[%clk 0:02:17]}  d4 {[%clk 0:01:20]} 16. Bxf6 {[%clk 0:02:12]}  gxf6 {[%clk 0:01:15]} 17. Ne4 {[%clk 0:02:05]}  Bg7 {[%clk 0:01:11]} 18. Qf4 {[%clk 0:01:52]}  f5 {[%clk 0:00:31]} 19. Nd6 {[%clk 0:01:48]}  Rxe2 {[%clk 0:00:24]} 20. Rxe2 {[%clk 0:01:40]}  Bxe2 {[%clk 0:00:24]} 21. Nxf5 {[%clk 0:01:40]}  Qf6 {[%clk 0:00:20]} 22. Nd2 {[%clk 0:01:29]}  d3 {[%clk 0:00:18]} 23. Re1 {[%clk 0:01:24]}  Rc8 {[%clk 0:00:16]} 24. Bh3 {[%clk 0:01:10]}  Rd8 {[%clk 0:00:14]} 25. Ne4 {[%clk 0:01:01]}  Qe5 {[%clk 0:00:12]} 26. Qg5 {[%clk 0:00:55]}  Kh8 {[%clk 0:00:10]} 27. Nd2 {[%clk 0:00:38]}  Re8 {[%clk 0:00:09]} 28. Qh4 {[%clk 0:00:28]}  Qf6 {[%clk 0:00:07]} 29. Qa4 {[%clk 0:00:22]}  Re5 {[%clk 0:00:05]} 30. Ne3 {[%clk 0:00:19]}  Bh6 {[%clk 0:00:02]} 31. Ne4 {[%clk 0:00:19]}  Rxe4 {[%clk 0:00:02]} 32. Qxe4 {[%clk 0:00:18]}  d2 {[%clk 0:00:02]} 33. Qe8+ {[%clk 0:00:16]}  Kg7 {[%clk 0:00:02]} 34. Rd1 {[%clk 0:00:15]}  Bxe3 {[%clk 0:00:02]} 35. Qxe3 {[%clk 0:00:14]}  Bxd1 {[%clk 0:00:02]} 36. Qxd2 {[%clk 0:00:15]}  Bf3 {[%clk 0:00:02]} 37. Bf1 {[%clk 0:00:13]}  Ne5 {[%clk 0:00:02]} 38. Qe3 {[%clk 0:00:12]}  Bc6 {[%clk 0:00:02]} 39. f4 {[%clk 0:00:12]}  Nf3+ {[%clk 0:00:02]} 40. Kf2 {[%clk 0:00:12]}  Qb2+ {[%clk 0:00:02]} 41. Be2 {[%clk 0:00:11]}  Nd4 {[%clk 0:00:03]} 42. Qe5+ {[%clk 0:00:11]}  f6 {[%clk 0:00:02]} 43. Qe7+ {[%clk 0:00:10]}  Kg6 {[%clk 0:00:02]} 44. f5+ {[%clk 0:00:05]}  Kxf5 {[%clk 0:00:02]} 45. g4+ {[%clk 0:00:02]}  Kg5 {[%clk 0:00:02]} 46. Qe3+ {[%clk 0:00:03]}  Kg6 {[%clk 0:00:01]} 47. Qd3+ {[%clk 0:00:03]}  Kg7 {[%clk 0:00:01]} 48. Ke3 {[%clk 0:00:03]}  Qxe2+ {[%clk 0:00:02]} 49. Qxe2 {[%clk 0:00:03]}  Nxe2 {[%clk 0:00:03]} 50. Kxe2 {[%clk 0:00:04]}  Kh6 {[%clk 0:00:03]} 51. Ke3 {[%clk 0:00:04]}  Kg5 {[%clk 0:00:04]} 52. h3 {[%clk 0:00:05]}  Bd7 {[%clk 0:00:04]} 53. Kf3 {[%clk 0:00:05]}  f5 {[%clk 0:00:05]} 54. Kg3 {[%clk 0:00:06]}  fxg4 {[%clk 0:00:05]} 55. hxg4 {[%clk 0:00:07]}  h6 {[%clk 0:00:06]} 56. Kf2 {[%clk 0:00:08]}  Bxg4 {[%clk 0:00:06]} 0-1


[Site "https://www.chess.com"]